Cogmind - Beta 15 @@@ ROGUE MODE // 2025.09.12 @ 13:07:57 Player: Petvaria Result: Destroyed by WY-K0A(x) with Makeshift Spear Performance ------------- Evolutions (0) 0 Regions Visited (4) 800 Robots Destroyed (18) 90 Value Destroyed (689) 689 Prototype IDs (19) 380 Alien Tech Used (0) 0 Bonus (800) 800 TOTAL SCORE: 2759 Bonus ------- Registered with UFD 300 Met Optimus in HQ 500 Cogmind --------- Core Integrity 0/250 Matter 290/300 Energy 103/125 System Corruption 0% Temperature Cool (0) Movement Treading (160) Location -9/Scraptown Parts ------- > --- POWER (1) -------- Light Ion Engine > --- PROPULSION (2) --- Light Treads > --- UTILITY (2) ------ Personal Teleporter v0.10 > --- WEAPON (2) ------- Heavy Battle Rifle Ripper > --- INVENTORY (5) ---- Improved Treads Scrap Shield CPS Tube (2) Peak State ------------ > --- POWER ------------ Ion Engine > --- PROPULSION ------- Light Treads Light Treads Aluminum Leg > --- UTILITY ---------- Small Storage Unit Tower Shield > --- WEAPON ----------- Subdweller Laser Subdweller Laser Subdweller Machine Gun > --- INVENTORY -------- Ion Engine Light Ion Engine Light Treads Light Treads Aluminum Leg Medium Laser Ripper [Rating: 32] Favorites ----------- Power Light Ion Engine Engine Light Ion Engine Propulsion Light Treads Treads Light Treads Leg Aluminum Leg Utility Scrap Shield Device Personal Teleporter v0.10 Storage Small Storage Unit Protection Scrap Shield Weapon Subdweller Machine Gun Energy Gun Subdweller Laser Ballistic Gun Subdweller Machine Gun Slashing Weapon Ripper Build | -11 -10 -10 -9 -9 ------- Run | Yrd Mat Sub Rec Scr Slots Evolved . | . . . . . Power . | . . . . . Propulsion . | . . . . . Utility . | . . . . . Weapon . | . . . . . Parts Attached 21 | 6 . 14 . 1 Power 3 | 1 . 2 . . Engine 3 | 1 . 2 . . Core . | . . . . . Reactor . | . . . . . Propulsion 5 | 2 . 3 . . Treads 4 | 2 . 2 . . Leg 1 | . . 1 . . Wheel . | . . . . . Hover . | . . . . . Flight . | . . . . . Utility 6 | 1 . 4 . 1 Device 1 | . . . . 1 Storage 1 | 1 . . . . Processor . | . . . . . Hackware . | . . . . . Protection 4 | . . 4 . . Artifact . | . . . . . Weapon 7 | 2 . 5 . . Energy Gun 3 | 1 . 2 . . Energy Cannon . | . . . . . Ballistic Gun 3 | 1 . 2 . . Ballistic Cannon . | . . . . . Launcher . | . . . . . Special Weapon . | . . . . . Impact Weapon . | . . . . . Slashing Weapon 1 | . . 1 . . Piercing Weapon . | . . . . . Special Melee Weapon . | . . . . . Unidentified Prototypes . | . . . . . Parts Lost 2 | . . 2 . . Power . | . . . . . Propulsion . | . . . . . Utility 1 | . . 1 . . Weapon 1 | . . 1 . . Highest Loss Streak 1 | . . 1 . . To Critical Strikes . | . . . . . Average Backups 5 | 3 6 6 5 4 Power . | . 1 1 . . Propulsion 1 | 2 4 2 1 1 Utility . | . . . . . Weapon 3 | . 1 3 4 3 Tool/Special . | . . . . . Unused Backups 9 | . . 3 . 6 Power . | . . . . . Propulsion 4 | . . 2 . 2 Utility . | . . . . . Weapon 4 | . . 1 . 3 Tool/Special 1 | . . . . 1 Average Slot Usage (%) 82 | . 84 81 85 83 Engine 13 | . 14 12 14 14 Treads 26 | . 27 25 28 27 Storage 3 | . 14 5 . . Protection 10 | . . 10 14 11 Energy Gun 5 | . 14 8 . . Ballistic Gun 20 | . 14 16 28 25 Slashing Weapon 1 | . . 1 . 2 Peak Build Rating 32 | 6 6 32 14 18 Average Rating 14 | 4 5 15 14 13 On Entrance 8 | . 6 6 15 14 Naked Turns . | . . . . . Heaviest Build 60 | 13 13 60 29 29 Greatest Support 40 | 40 40 40 40 40 Greatest Overweight (x) 1 | . . 1 . . Average Overweight (x) . | . . . . . Largest Inventory Capacity 8 | 8 8 8 5 5 Average Capacity 5 | 7 8 6 5 5 Most Carried 8 | 6 8 8 5 5 Average Carried 5 | 3 6 6 5 4 Final Capacity 8 | 8 8 5 5 5 Final Carried 7 | 6 7 5 5 4 Class Distribution -------------------- 84% | Mutant 9% | Subdweller-Mutant 6% | Gunner Dominant Class ---------------- Mutant | -10/Materials Mutant | -10/Subcaves Mutant | -9/Recycling Mutant | -9/Scraptown Resources | -11 -10 -10 -9 -9 ----------- Run | Yrd Mat Sub Rec Scr Matter Collected 742 | 260 6 405 20 51 Remotely . | . . . . . Salvage Created 784 | . 35 749 . . Parts 58 | . 2 56 . . Haulers Intercepted . | . . . . . Recyclers Shooed . | . . . . . Parts Field Recycled . | . . . . . Retrieved Matter . | . . . . . Parts Self-Destructed . | . . . . . Prevented . | . . . . . Kills | -11 -10 -10 -9 -9 ------- Run | Yrd Mat Sub Rec Scr Combat Hostiles Destroyed 18 | . 1 17 . . Guns 18 | . 1 17 . . Classes Destroyed 4 | . 1 3 . . Swarmer 1 | . . 1 . . Grunt 1 | . 1 . . . Sentry 1 | . . 1 . . Subdweller 15 | . . 15 . . Best Kill Streak 2 | . 1 2 . . Combat Bots Only 2 | . 1 2 . . Max Kills in Single Turn 1 | . 1 1 . . Gunslinging . | . . . . . Exploded . | . . . . . Melee . | . . . . . Uniques/NPCs Destroyed . | . . . . . Combat | -11 -10 -10 -9 -9 -------- Run | Yrd Mat Sub Rec Scr Hostile Shots Fired 143 | . 8 81 . 54 Missed 40 | . 3 21 . 16 Hits 103 | . 5 60 . 38 Melee 2 | . . . . 2 Projectile 101 | . 5 60 . 36 Critical Strikes 3 | . . 3 . . Damage Taken 1773 | . 48 1338 . 387 Core 260 | . 18 173 . 69 Absorbed by Shields . | . . . . . Regen/Repaired (Parts) 288 | . . . . 288 Core Remaining (%) 100 | 100 . . . . Volleys Fired 85 | . 6 72 . 7 Largest 3 | . 2 3 . 1 Hottest 150 | . 70 150 . 33 Shots Fired 180 | . 12 161 . 7 Gun 180 | . 12 161 . 7 Cannon . | . . . . . Launcher . | . . . . . Special . | . . . . . Kinetic 87 | . 6 74 . 7 Thermal 93 | . 6 87 . . Explosive . | . . . . . Electromagnetic . | . . . . . Robot Hit Streak 32 | . 3 32 . 4 Robot Miss Streak 5 | . 2 5 . 2 Penetration Max . | . . . . . Secondary Targets 2 | . . 2 . . Max Gunslinging Chain 1 | . . 1 . . Shots Hit Robots 138 | . 7 127 . 4 Core Hits 45 | . 3 41 . 1 Critical Kills . | . . . . . Critical Parts Destroyed 1 | . . 1 . . Critical Strikes 7 | . . 7 . . Burn 2 | . . 2 . . Destroy 5 | . . 5 . . Melee Attacks 27 | . . 26 . 1 Impact . | . . . . . Slashing 27 | . . 26 . 1 Piercing . | . . . . . Sneak Attacks . | . . . . . Combat Hostiles . | . . . . . Follow-up Attacks . | . . . . . Damage Inflicted 2393 | . 72 2243 . 78 Guns 2393 | . 72 2243 . 78 Cannons . | . . . . . Explosions . | . . . . . Melee . | . . . . . Ramming . | . . . . . Kinetic 1017 | . 22 917 . 78 Thermal 1376 | . 50 1326 . . Explosive . | . . . . . Electromagnetic . | . . . . . Impact . | . . . . . Slashing . | . . . . . Piercing . | . . . . . Highest Corruption . | . . . . . Average Corruption . | . . . . . Corruption Purged . | . . . . . Corruption Blocked . | . . . . . Overload Shots . | . . . . . Overflow Damage . | . . . . . Projectiles . | . . . . . Explosions . | . . . . . Melee . | . . . . . Knockbacks . | . . . . . Impact . | . . . . . Kinetic . | . . . . . Secondary . | . . . . . Self-Inflicted Damage . | . . . . . Shots . | . . . . . Rammed . | . . . . . Targets Rammed . | . . . . . Kicked . | . . . . . Crushed . | . . . . . Highest Temperature 527 | . 112 527 . 8 Average Temperature 86 | . 58 99 . 4 Received Heat Transfer 913 | . 18 769 . 126 Effects 2 | . . 2 . . Energy Bleed 1 | . . 1 . . Damage (core) 1 | . . 1 . . Siege Activations . | . . . . . Martial Activations . | . . . . . Shielding Activations . | . . . . . Robots Disrupted . | . . . . . Combat Hostiles . | . . . . . Robots Corrupted . | . . . . . Combat Hostiles . | . . . . . Parts Fried . | . . . . . Impact Corruptions . | . . . . . Robots Melted . | . . . . . Combat Hostiles . | . . . . . Parts Melted 3 | . 1 2 . . Heat Transferred 2373 | . 148 2225 . . Parts Sabotaged . | . . . . . Parts Stolen . | . . . . . Parts Stripped . | . . . . . Power Chain Reactions . | . . . . . Alert | -11 -10 -10 -9 -9 ------- Run | Yrd Mat Sub Rec Scr Maximum Alert Level . | . . . . . Low Security (%) 100 | 100 100 . 100 . Level 1 . | . . . . . Level 2 . | . . . . . Level 3 . | . . . . . Level 4 . | . . . . . Level 5 . | . . . . . High Security . | . . . . . Max Security . | . . . . . Peak Influence 30 | . 30 . . . Initial . | . . . . . Average . | . 2 . . . Influence Increases 70 | . 30 40 . . Destroy 0b10 Robot/C 60 | . 20 40 . . Destroy Leader 10 | . 10 . . . Influence Decreases 70 | . 30 40 . . Time Decay 70 | . 30 40 . . Squads Dispatched 1 | . 1 . . . Investigation . | . . . . . Extermination . | . . . . . Reinforcement 1 | . 1 . . . Assault . | . . . . . Garrison . | . . . . . Intercept . | . . . . . Searches Triggered . | . . . . . Construction Impeded . | . . . . . Haulers Reinforced . | . . . . . Active Scanning Responses . | . . . . . Cargo Convoy Interrupts . | . . . . . Stealth | -11 -10 -10 -9 -9 --------- Run | Yrd Mat Sub Rec Scr Distress Signals . | . . . . . Communications Jammed . | . . . . . Distress Signals . | . . . . . Times Spotted 34 | . 4 20 . 10 Peak Tracking Total 6 | . 3 2 . 6 Tactical Retreats . | . . . . . Traps | -11 -10 -10 -9 -9 ------- Run | Yrd Mat Sub Rec Scr Traps Triggered 2 | . 1 1 . . Indirectly . | . . . . . Trap Hack Attempts . | . . . . . Triggered . | . . . . . Disarmed . | . . . . . Reprogrammed . | . . . . . Reused 1 | . . . . 1 Traps Extracted . | . . . . . Installed 1 | . . . . 1 Triggered . | . . . . . Machines | -11 -10 -10 -9 -9 ---------- Run | Yrd Mat Sub Rec Scr Machines Disabled 2 | . . 1 . 1 Max in Single Turn 1 | . . 1 . 1 Machines Repaired . | . . . . . Machines Dismantled . | . . . . . Machines Sabotaged . | . . . . . Overloaded Fab Kills . | . . . . . Hacking | -11 -10 -10 -9 -9 --------- Run | Yrd Mat Sub Rec Scr Machines Accessed 4 | . . 2 . 2 Terminals . | . . . . . Fabricators . | . . . . . Repair Stations . | . . . . . Recycling Units . | . . . . . Scanalyzers . | . . . . . Garrison Access . | . . . . . Total Hacks 13 | . . 6 . 7 Successful 13 | . . 6 . 7 Failed . | . . . . . Catastrophic . | . . . . . Database Lockouts . | . . . . . Manual . | . . . . . Terminals . | . . . . . Fabricators . | . . . . . Repair Stations . | . . . . . Recycling Units . | . . . . . Scanalyzers . | . . . . . Garrison Access . | . . . . . Terminal Hacks 13 | . . 6 . 7 Record 5 | . . 5 . . Robot Analysis 6 | . . . . 6 Proto ID Catalog 2 | . . 1 . 1 Fabricator Hacks . | . . . . . Repair Station Hacks . | . . . . . Recycling Unit Hacks . | . . . . . Scanalyzer . | . . . . . Garrison Access Hacks . | . . . . . Unauthorized Hacks . | . . . . . Terminals . | . . . . . Fabricators . | . . . . . Repair Stations . | . . . . . Recycling Units . | . . . . . Scanalyzers . | . . . . . Garrison Access . | . . . . . Data Cores Recovered . | . . . . . Used . | . . . . . Hacking Detections . | . . . . . Full Trace Events . | . . . . . Feedback Events . | . . . . . Feedback Blocked . | . . . . . Robot Schematics Acquired . | . . . . . Robots Built . | . . . . . Authchips . | . . . . . Time . | . . . . . Total Robot Build Rating . | . . . . . Part Schematics Acquired . | . . . . . Parts Built . | . . . . . Authchips . | . . . . . Time . | . . . . . Total Part Build Rating . | . . . . . Parts Repaired . | . . . . . Time . | . . . . . Parts Recycled . | . . . . . Recycled Matter . | . . . . . Retrieved Matter . | . . . . . Retrieved Components . | . . . . . Parts Scanalyzed . | . . . . . Part Schematics Acquired . | . . . . . Parts Damaged . | . . . . . Bothacking | -11 -10 -10 -9 -9 ------------ Run | Yrd Mat Sub Rec Scr Used RIF Installer . | . . . . . Robots Hacked . | . . . . . Non-combat . | . . . . . Combat . | . . . . . Robot Hacks Applied . | . . . . . Relay Couplers Released . | . . . . . Fabnet Peak Effective % . | . . . . . Robots Rewired . | . . . . . Allies Hacked . | . . . . . Hacks Repelled . | . . . . . Allies | -11 -10 -10 -9 -9 -------- Run | Yrd Mat Sub Rec Scr Total Allies . | . . . . . Largest Group . | . . . . . Highest-Rated Group . | . . . . . Highest-Rated Ally . | . . . . . Total Orders . | . . . . . Ally Attacks . | . . . . . Total Damage . | . . . . . Kills . | . . . . . Allies Corrupted . | . . . . . Allies Melted 3 | . . . . 3 Intel | -11 -10 -10 -9 -9 ------- Run | Yrd Mat Sub Rec Scr Active Infowar (turns) . | . . . . . Robot Analysis Total 6 | . . . . 6 Derelict Logs Recovered 4 | . . 2 . 2 Drone Launches . | . . . . . Drone Recoveries . | . . . . . Exploration | -11 -10 -10 -9 -9 ------------- Run | Yrd Mat Sub Rec Scr Turns Passed 8364 | 83 344 4376 933 2628 Spaces Moved 4466 | 47 113 2324 572 1410 Core 8 | 8 . . . . Treads 4456 | 39 113 2324 572 1408 Legs . | . . . . . Wheels . | . . . . . Hover . | . . . . . Flight . | . . . . . Fastest Speed 50 | 50 160 160 160 160 Average Speed 165 | 141 160 171 160 160 Slowest Speed 240 | 160 160 240 160 160 Overloaded Moves . | . . . . . Propulsion Burnouts . | . . . . . Robots Hopped . | . . . . . Potential Cave-ins . | . . . . . Cave-ins Triggered . | . . . . . Teleports 2 | . . . . 2 Exploration Rate (%) 60 | 4 23 97 88 92 Regions Visited 4 Branch Regions 3 Pre-discovered Areas 1 | . . 1 . . Known Exits Taken 1 | . . 1 . . Unknown Exits Taken 3 | 1 1 . 1 . Scrap Searched 9 | . . 6 . 3 Spaces Dug 2 | . . 2 . . Terrain Destroyed 2 | . . 2 . . Melee 2 | . . 2 . . Projectile . | . . . . . AOE . | . . . . . Terrain Rammed . | . . . . . Walls Destroyed . | . . . . . Machines Disabled . | . . . . . Actions | -11 -10 -10 -9 -9 --------- Run | Yrd Mat Sub Rec Scr Total 5243 | 64 265 2544 589 1781 Wait 551 | . 143 48 17 343 Move 4462 | 46 112 2323 571 1410 Hop . | . . . . . Pick Up 38 | 12 2 19 . 5 Fast Attach 8 | . 1 6 . 1 Attach 14 | 6 1 5 . 2 Detach 3 | . . 1 . 2 Swap 19 | . . 17 1 1 Drop 28 | . . 20 . 8 Fire 85 | . 6 72 . 7 Melee 27 | . . 26 . 1 Ram . | . . . . . Kick . | . . . . . Crush . | . . . . . Escape Stasis . | . . . . . Rewire 1 | . . 1 . . Trap 1 | . . . . 1 Miscellaneous 6 | . . 6 . . Route ------- -11/Scrapyard -10/Materials -10/Subcaves (discovered 3 exits: [*Mat x2] / *Rec) -9/Recycling (discovered 2 exits: [*Fac] / *Scr) -9/Scraptown (discovered 1 exit: [*Fac]) History --------- Turn | Location | Event 7 | -11/Scrapyard | Discovered new exit (range 16) 84 | -11/Scrapyard | Entered Materials 301 | -10/Materials | Build established: Mutant 408 | -10/Materials | Discovered new exit (range 6) 428 | -10/Materials | Entered Subcaves 565 | -10/Subcaves | Visited Clippyterm 570 | -10/Subcaves | Identified exit to Recycling 570 | -10/Subcaves | Learned Factory fabricator intel 994 | -10/Subcaves | Shifting Twisted Machinery released Ripper 1075 | -10/Subcaves | Visited 4L-MR0's lab 1092 | -10/Subcaves | Found Tower Shield 1104 | -10/Subcaves | Attached Tower Shield, gained temporary slots: Power, Propulsion x2, Utility x2, Weapon x2 1394 | -10/Subcaves | Shifting Twisted Machinery released Sub. Laser 1717 | -10/Subcaves | Build established: Gunner 1843 | -10/Subcaves | Disturbed a concealed Subdweller 2018 | -10/Subcaves | Shifting Twisted Machinery released Sub. Optics 2124 | -10/Subcaves | Shifting Twisted Machinery released Sub. Power Source 2134 | -10/Subcaves | Shifting Twisted Machinery released Mak. System Restoration Module 2190 | -10/Subcaves | Shifting Twisted Machinery released Sub. Beam Cannon 2286 | -10/Subcaves | Build established: Mutant 2852 | -10/Subcaves | Core integrity fell below 50% 2993 | -10/Subcaves | Build established: Subdweller-Mutant 3046 | -10/Subcaves | Discovered new exit (range 8) 3609 | -10/Subcaves | A swath of the cavern ceiling suddenly collapsed 3766 | -10/Subcaves | Build established: Mutant 4089 | -10/Subcaves | Discovered new exit (range 9) 4804 | -10/Subcaves | Entered Recycling 4805 | -9/Recycling | Met a Zionite searching for Scraptown 5561 | -9/Recycling | Discovered new exit (range 10) 5700 | -9/Recycling | Scanned before Scraplab entrance 5722 | -9/Recycling | Entered Scraplab 5735 | -9/Recycling | Discovered new exit (range 2) 5737 | -9/Recycling | Entered Scraptown 6161 | -9/Scraptown | Discovered new exit (range 3) 6206 | -9/Scraptown | Scanned Subdweller tech in exchange for log data 6209 | -9/Scraptown | Learned Research terminal intel 6211 | -9/Scraptown | Learned Factory stockpile data 6257 | -9/Scraptown | Visited CR-KLE's Repair Center 6269 | -9/Scraptown | CR-KLE repaired 5 parts 6289 | -9/Scraptown | Visited Comm Corps 6715 | -9/Scraptown | Visited Awakened 6753 | -9/Scraptown | Visited SPCMW 6795 | -9/Scraptown | Visited Junk Repository 6875 | -9/Scraptown | Visited IN-MT5's Study 7059 | -9/Scraptown | Visited Cave Peace 7119 | -9/Scraptown | Visited UFD Registry 7119 | -9/Scraptown | Registered with UFD as "Hammershell" 7167 | -9/Scraptown | Visited Chapter 10 7191 | -9/Scraptown | Visited Scrapoid Pod Storage 7214 | -9/Scraptown | Visited Curators Association 7427 | -9/Scraptown | Visited Science Guys 7476 | -9/Scraptown | Visited DA-N13 Charitable Foundation 7494 | -9/Scraptown | Found DCF Scrap (30 items) 7537 | -9/Scraptown | Visited Science Testing Area 7559 | -9/Scraptown | Visited Scrapoid Research Area 7591 | -9/Scraptown | Visited Derelict Rescue Squad 7634 | -9/Scraptown | Visited A0-MCA Data Center 7660 | -9/Scraptown | Visited Analyses Database 7815 | -9/Scraptown | Met Optimus 7815 | -9/Scraptown | Accepted into 0bPrime 8215 | -9/Scraptown | Civil war broke out across Scraptown 8221 | -9/Scraptown | Found Personal Teleporter v0.10 8311 | -9/Scraptown | Core integrity fell below 20% 8314 | -9/Scraptown | Lost 6 allies 8365 | -9/Scraptown | Destroyed by WY-K0A(x) with Makeshift Spear Last Messages --------------- Penetrated by Bolt. Slug penetrates Machine. Penetrated by Bolt. Personal Teleporter v0.10 accelerates matter through subspace pores. Lgt. Treads displaced by the process. MI-HXS(j) cannibalizes Mak. Microdissipator Network to repair Mak. Microdissipator Network. FV-APX(h): "Stop this nonsense!" Bolt penetrates Wall. MI-HXS(j) cannibalizes Lgt. Deuterium Engine to repair Lgt. Deuterium Engine. MI-HXS(j) cannibalizes Salvaging Laser to repair Ovr. Pulse Rifle. Personal Teleporter v0.10 fully charged. Personal Teleporter v0.10 accelerates matter through subspace pores. O3-0MJ(x) destroyed. 1O-WR1(j): "We are one!" Map ----- +----------------------------------------------------+ | #???????????????????? | | #???????????????????? | | ### ##########"" """"#####???????????????????? | | ??## ##????????#" "#???????????????????????? | | ##?# #########?#" ""#???????????????????????? | | #?# """"""""#?#" """#???????????????????????? | | ### " ""#?#" """#???????????????????????? | | """ "#?#"""""""#???????????????????????? | | """ " ""#?#######?????????????????????????? | | " """"""""#?????????????????????????????????? | | ##"""####?????????????????????????????????? | | "" " ############??????????????????????????????? | | " #??#"""""""#?????########?????????????????? | | """" #??" " "#????# #??????????######## | | #### ####" "#????# "" "" #??????????#""""""" | | ???# ## " ""#????# ""X"" #??????????#"" " X | | #### ## " """#????# """"" #??????????#"" | | ## " ""#????# """ #??????????#""" " | | ## " "#????# " #??????????# | | #### ##""" "#????# #??????????# | | ??# ## #????# #??????????#### ### | | #### ### ################## ####???????##### ### | | # #???????#"""" """ | | # #???????#" | | # j % j = #???????#" | | # !%= @ % #???????#" | | # =% [ x = #???????#" | | # #################%= #???????#" | | # #???????????????#* != #?????""" "" | | # #???????????????# ![![ #?????""" "" | | # #???????????????# =%==*%!#?????""" "" | | #???????????????# *%! = #?????""" "" | | # #???????????????# =% #??????"" "" | | ## #???????????????# ! ###????"" "" | | ?# #???????????????# =%!""#"#??"" "" | | ## #???????????????# """"#??"" "" | | # #???????????????# ""###??##" "" | | # #????############ =!###?????#"=! "" | | # #????#!!# ! #! ## *=#########"%[! "" | | #????#!!# ! # !# ===[*%![*! =*%= "" | | # #????# # # ## %*!*%==*%[ !=*! "" | | # #????# ## !!%!%=!!%[ %[%="" | | # #????# ## [%& ! !! =!%"" | | # ############ #### ==!! * =!! " | | # !%[% % % | | # [=[ * =%== | | # [ [%= [ %* *%*%[ !% | | # ! =! !%[ [%== =[!! =* | | ## =%% ! =!! = | | !%![ ! [ #""""#" | +----------------------------------------------------+ Best States ------------- Heat Dissipation 25 Energy Generation 10 Energy Capacity 250 Matter Stores 300 Matter Capacity 300 Sight Range 16 Terrain Scan Density 10 Armor Coverage 2000 Evasion (%) 40 Recoil Reduction 2 Item Schematics ----------------- None Robot Schematics ------------------ None Fabricated ------------ Nothing Repaired ---------- Nothing Alien Tech Used ----------------- None Achievements -------------- None Challenges ------------ None Game ------ Seed RingDerelictInterrupter Manual? 0 Play Time 00:38:02 Cumulative 196.4 hours Start 2025.09.12 @ 12:29:25 End 2025.09.12 @ 13:07:57 Sessions 1 Manual Loads 0 Difficulty Rogue Special Mode None Game No. 164 Rogue 164 Adventurer 0 Explorer 0 Win Type - Total 10 Types 4/0/2/2/1/0/0/0/0/1 Lore% 89 Gallery% 83 Achievement% 66 Wizard Run 0 Options --------- Layout 1 ASCII 0 Keyboard 0 Movement Numpad Keybinds 0 Fullscreen 1 Font 24/Proggy Map View 50x35 Zoom Use 0% Tactical HUD 0 Map Filters NONE Filters NONE Steam 1 RUN: 6ee2f716-bf03-4771-9b8f-3934c27b6f17